bitfinex-derivatives/quotes_SOLF0:USTF0_20241021
["timestamp","ask_amount","ask_price","bid_price","bid_amount"]
[1729499727558,1.0,168.2,167.96,5.04]
[1729499727760,1.3227,168.19,167.96,5.04]
[1729499728459,1.0,168.18,167.96,5.04]
[1729499728660,17.88,168.16,167.96,5.04]
[1729499728861,2.5554,168.15,167.96,5.04]
[1729499730669,2.5554,168.15,167.96,8.07886548]
[1729499730976,22.92,168.14,167.96,8.07886548]
[1729499731269,5.04,168.13,167.96,8.07886548]
[1729499732072,8.09196176,168.13,167.96,8.07886548]
[1729499732371,8.09196176,168.13,168.0,2.9771]
[1729499732372,5.04,168.13,168.0,2.9771]
[1729499732566,5.04,168.13,168.01,5.04]
[1729499733167,8.0478729,168.13,168.01,5.04]
[1729499735675,8.0478729,168.13,167.99,5.04]
[1729499735867,1.2274,168.12,167.99,5.04]
[1729499737174,1.2274,168.12,167.94,1.2534]
[1729499737374,1.2274,168.12,167.96,5.04]
[1729499737675,1.2274,168.12,167.93,1.2299]
[1729499737676,17.88,168.11,167.93,1.2299]
[1729499739876,17.88,168.11,167.88,5.5945]
[1729499740176,17.88,168.11,167.88,3.9118]
[1729499740371,1.0,168.1,167.88,3.9118]
[1729499740578,17.88,168.08,167.86,5.04]
[1729499740775,2.4638,168.07,167.83,3.8754]
[1729499741376,2.4638,168.07,167.83,2.5806]
[1729499741576,1.0,168.06,167.79,5.04]
[1729499741770,17.88,168.04,167.79,5.04]
[1729499742076,1.2765,168.03,167.79,5.04]
[1729499742267,17.88,168.02,167.79,5.04]
[1729499742467,17.88,168.0,167.79,5.04]
[1729499742674,17.88,167.98,167.78,2.97782115]
[1729499742873,5.04,167.97,167.79,5.04]
[1729499743080,66.8255,167.99,167.79,5.04]
[1729499743272,5.04,167.98,167.79,5.04]
[1729499743471,66.8255,167.99,167.79,5.04]
[1729499743769,5.04,167.98,167.79,5.04]
[1729499744177,5.04,167.98,167.79,8.0208]
[1729499745584,5.04,167.98,167.79,2.9808]
[1729499745774,5.04,167.98,167.8,8.0207]
[1729499745968,5.04,167.98,167.8,5.04]
[1729499747473,66.8255,167.99,167.8,5.04]
[1729499747675,5.04,167.97,167.8,5.04]
[1729499748278,5.04,167.97,167.85,2.9798]
[1729499748473,5.04,167.97,167.86,7.6502]
[1729499748677,5.04,167.97,167.86,8.9405]
[1729499753183,5.04,167.97,167.86,11.9201]
[1729499754682,4.92,167.97,167.86,11.9201]
[1729499754983,4.92,167.97,167.87,2.9794]
[1729499755179,64.36,167.99,167.86,8.9405]
[1729499755374,3.03030428,168.03,167.86,8.9405]
[1729499755574,4.92,168.04,167.86,8.9405]
[1729499756685,4.92,168.04,167.92,2.9785]
[1729499756888,4.92,168.04,167.93,4.92]
[1729499757388,4.92,168.04,167.94,3.7357]
[1729499759189,7.94677332,168.04,167.94,3.7357]
[1729499759991,7.94677332,168.04,167.94,1.2606]
[1729499760196,7.94677332,168.04,167.91,4.92]
[1729499761793,25.82677332,168.04,167.89,6.1898]
[1729499763393,25.82677332,168.04,167.89,1.2698]
[1729499765187,7.94677332,168.04,167.89,1.2698]
[1729499765392,7.94677332,168.04,167.9,4.92]
[1729499768101,25.82677332,168.04,167.9,4.92]
[1729499768293,2.58,168.03,167.89,1.2698]
[1729499768498,21.6654,168.03,167.89,1.2698]
[1729499769490,4.92,168.02,167.89,1.2698]
[1729499769898,4.92,168.02,167.93,2.9783]
[1729499770198,4.92,168.02,167.94,2.6228]
[1729499772400,2.5445,168.1,167.95,2.978]
[1729499772598,4.92,168.09,167.94,5.56808109]
[1729499773102,4.92,168.09,167.95,2.9779]
[1729499773997,4.92,168.09,167.94,5.56808109]
[1729499773998,1.241,168.11,167.94,5.56808109]
[1729499774295,4.92,168.1,167.94,5.56808109]
[1729499775603,65.7301,168.12,167.94,5.56808109]
[1729499775796,4.2833729,168.13,167.94,5.56808109]
[1729499775797,1.2755,168.13,167.94,5.56808109]
[1729499775997,4.92,168.14,167.94,5.56808109]
[1729499776393,4.92,168.14,168.03,2.9765]
[1729499776594,4.92,168.14,168.04,8.7759]
[1729499777104,4.92,168.14,168.04,3.8559]
[1729499777300,2.9831474,168.13,168.04,1.2501]
[1729499777507,4.2439474,168.13,168.0,4.92]
[1729499777707,1.3261,168.12,167.98,4.92]
[1729499778106,1.3261,168.12,167.96,4.92]
[1729499778408,4.25651951,168.12,167.96,4.92]
[1729499778806,4.25651951,168.12,167.96,7.8979]
[1729499779803,4.25651951,168.12,167.96,4.92]
[1729499780305,4.25651951,168.12,167.95,3.8328]
[1729499780803,22.13651951,168.12,167.95,1.227]
[1729499781003,22.13651951,168.12,167.92,4.92]
[1729499781202,22.13651951,168.12,167.9,4.92]
[1729499782403,22.13651951,168.12,167.92,2.9785]
[1729499782609,17.88,168.1,167.9,4.92]
[1729499783011,17.88,168.1,167.93,2.9783]
[1729499783408,17.88,168.1,167.9,4.92]
[1729499783708,4.84,168.09,167.9,4.92]
[1729499784710,4.84,168.08,167.95,2.9779]
[1729499785312,4.84,168.07,167.95,1.3467]
[1729499785503,4.84,168.07,167.96,2.6731]
[1729499785811,4.84,168.07,167.96,5.6509]
[1729499786707,4.84,168.06,167.98,2.9774]
[1729499786913,4.84,168.07,167.98,2.9774]
[1729499787213,4.84,168.07,167.97,2.9777]
[1729499788307,4.84,168.07,167.96,2.6731]
[1729499788908,4.84,168.07,167.96,5.6509]
[1729499789311,4.84,168.07,167.96,2.6731]
[1729499791513,4.25651951,168.12,167.96,2.6731]
[1729499791717,4.84,168.11,167.96,2.6731]
[1729499792606,4.84,168.1,167.96,2.6731]
[1729499793004,4.84,168.1,168.0,2.9771]
[1729499793209,4.84,168.1,168.0,4.84]
[1729499793715,4.84,168.1,167.97,4.84]
[1729499794212,4.84,168.1,167.96,1.3461]
[1729499795511,22.72,168.1,167.95,1.3467]
[1729499797320,17.88,168.08,167.91,4.84]
[1729499797614,17.88,168.08,167.89,1.2959]
[1729499798213,17.88,168.08,167.89,4.275]
[1729499798511,17.88,168.08,167.89,1.2959]
[1729499799918,17.88,168.08,167.91,2.9787]
[1729499800813,17.88,168.08,167.89,1.2959]
[1729499801117,17.88,168.08,167.91,2.9787]
[1729499801718,4.84,168.07,167.91,2.9787]
[1729499802017,22.72,168.07,167.91,2.9787]
[1729499802418,22.72,168.07,167.89,1.2959]
[1729499803211,1.2044,168.06,167.89,1.2959]
[1729499803725,2.5646,168.05,167.89,4.275]
[1729499804021,2.5646,168.05,167.79,5.9616]
[1729499804320,2.5646,168.05,167.87,2.9793]
[1729499804514,2.5646,168.05,167.86,7.8842358]
[1729499804715,2.5646,168.05,167.87,2.9794]
[1729499805118,2.5646,168.05,167.86,7.8842358]
[1729499805324,2.5646,168.05,167.89,2.979]
[1729499805915,2.5646,168.05,167.88,2.9793]
[1729499813321,2.5646,168.05,167.87,2.6322]
[1729499813525,20.4446,168.05,167.87,2.6322]
[1729499813728,75.23392127,168.05,167.87,2.6322]
[1729499815029,75.23392127,168.05,167.87,1.3346]
[1729499815231,17.88,168.03,167.83,4.72]
[1729499815430,17.88,168.01,167.83,4.72]
[1729499815932,17.88,168.01,167.82,7.7003]
[1729499816127,17.88,168.01,167.81,2.5376]
[1729499816335,17.88,168.01,167.81,7.2576]
[1729499816534,17.88,168.01,167.81,10.238]
[1729499817234,17.88,168.01,167.81,7.2576]
[1729499817733,22.6,168.0,167.85,2.9797]
[1729499817938,22.6,168.0,167.81,7.2576]
[1729499818130,25.6211221,168.0,167.81,7.2576]
[1729499819639,5.926,167.99,167.81,7.2576]
[1729499819839,5.926,167.99,167.85,2.9798]
[1729499820136,2.5814,167.98,167.85,2.9798]
[1729499822044,4.72,167.97,167.85,2.9798]
[1729499822847,4.72,167.97,167.84,2.98]
[1729499824245,22.6,167.97,167.81,2.5376]
[1729499825544,22.6,167.97,167.81,7.2576]
[1729499825840,4.72,167.96,167.81,7.2576]
[1729499826037,4.72,167.96,167.82,2.9803]
[1729499827044,4.72,167.96,167.81,7.2576]
[1729499827248,4.72,167.96,167.81,10.2381]
[1729499828343,4.72,167.96,167.81,2.5376]
[1729499829650,22.6,167.96,167.81,2.5376]
[1729499829846,22.6,167.96,167.75,4.72]
[1729499830150,22.6,167.96,167.71,0.09924242]
[1729499830151,22.6,167.96,167.74,4.72]
[1729499830846,22.6,167.96,167.74,7.7018]
[1729499831345,22.6,167.96,167.72,2.6036]
[1729499831346,17.88,167.94,167.72,2.6036]
[1729499831547,72.66932127,167.94,167.72,1.3246]
[1729499832146,17.88,167.94,167.72,1.3246]
[1729499832452,17.88,167.92,167.72,7.3023]
[1729499832753,17.88,167.9,167.72,7.3023]
[1729499832948,4.72,167.89,167.74,2.9818]
[1729499833150,7.7316457,167.89,167.74,2.9818]
[1729499833549,2.9804,167.83,167.74,2.9818]
[1729499833754,4.72,167.82,167.74,2.9818]
[1729499835856,4.72,167.82,167.73,2.9819]
[1729499840552,4.72,167.82,167.73,7.7019]
[1729499842050,4.72,167.85,167.73,4.72]
[1729499842255,4.72,167.86,167.73,4.72]
[1729499842459,4.72,167.88,167.73,4.72]
[1729499842656,3.00281152,167.91,167.73,4.72]
[1729499842862,4.72,167.9,167.73,4.72]
[1729499843061,3.8765,167.96,167.82,2.9802]
[1729499843362,3.8765,167.96,167.73,4.72]
[1729499843363,4.66,167.93,167.83,1.3328]
[1729499843560,4.66,167.93,167.84,2.6494]
[1729499847063,4.66,167.93,167.84,1.3518]
[1729499847259,4.66,167.93,167.83,1.3328]
[1729499847459,4.66,167.93,167.79,4.66]
[1729499847764,1.3014,167.92,167.79,7.6408]
[1729499848153,1.3014,167.92,167.79,4.66]
[1729499849058,1.3014,167.92,167.78,1.351]
[1729499849254,1.3014,167.92,167.73,2.6793]
[1729499849562,1.3014,167.92,167.75,2.9816]
[1729499849863,1.3014,167.92,167.75,4.66]
[1729499850062,1.3014,167.92,167.76,2.9813]
[1729499850263,4.66,167.91,167.76,2.9813]
[1729499850470,7.6139511,167.91,167.76,2.9813]
[1729499855059,7.6139511,167.91,167.75,4.66]
[1729499855862,7.6139511,167.91,167.79,2.9808]
[1729499856059,7.6139511,167.91,167.8,2.5123]
[1729499856866,2.9539511,167.91,167.8,2.5123]
[1729499857169,4.66,167.9,167.81,1.3186]
[1729499857367,4.66,167.89,167.83,2.9801]
[1729499857870,4.66,167.89,167.81,1.3186]
[1729499858073,4.66,167.89,167.82,2.9802]
[1729499859964,4.66,167.89,167.84,2.98]
[1729499860160,4.66,167.91,167.84,2.98]
[1729499860360,4.66,167.92,167.84,2.98]
[1729499861073,20.9111221,168.0,167.85,2.9798]
[1729499861271,4.66,167.98,167.85,2.9798]
[1729499861473,4.66,167.98,167.84,4.66]
[1729499861667,4.66,167.98,167.84,7.64]
[1729499865277,4.66,167.98,167.85,2.9797]
[1729499868483,4.66,167.98,167.83,4.66]
[1729499869382,4.66,167.98,167.83,7.6401]
[1729499870878,4.66,167.98,167.83,4.66]
[1729499871575,4.66,167.98,167.84,2.98]
[1729499875478,68.2319,167.99,167.83,4.66]
[1729499875816,4.58,167.98,167.87,2.9794]
[1729499876092,4.58,167.98,167.88,2.5978]
[1729499878789,4.58,167.97,167.88,2.5978]
[1729499878988,4.58,167.97,167.88,3.8491]
[1729499879190,4.58,167.97,167.88,6.8284]
[1729499879386,4.58,167.97,167.88,3.8491]
[1729499880184,4.58,167.97,167.88,1.253]
[1729499880384,4.58,167.97,167.83,4.58]
[1729499880581,4.58,167.97,167.82,4.58]
[1729499882486,4.58,167.97,167.83,2.9801]
[1729499883089,4.58,167.96,167.86,2.9797]
[1729499883284,4.58,167.96,167.82,4.58]
[1729499883987,4.58,167.96,167.85,2.9798]
[1729499884188,4.58,167.96,167.86,1.2594]
[1729499884588,4.58,167.96,167.86,2.58]
[1729499890492,4.58,167.96,167.86,5.5596]
[1729499890797,4.58,167.95,167.86,2.58]
[1729499890995,4.58,167.95,167.87,8.905]
[1729499891190,3.8119,167.99,167.88,2.98408334]
[1729499891391,4.58,167.98,167.88,2.98408334]
[1729499892001,4.58,167.98,167.87,5.9256]
[1729499892700,4.58,167.98,167.87,8.905]
[1729499892898,4.58,167.98,167.88,3.00161742]
[1729499894202,4.58,167.98,167.87,1.3456]
[1729499895897,4.58,167.98,167.87,4.325]
[1729499897902,4.58,167.98,167.87,1.3456]
[1729499901201,3.8119,167.99,167.87,1.3456]
[1729499901403,4.58,167.98,167.88,6.02105272]
[1729499902320,4.58,167.98,167.88,3.04175272]
[1729499902604,7.61310545,168.0,167.87,1.3456]
[1729499902805,2.5917,168.04,167.87,1.3456]
[1729499903008,4.58,168.04,167.87,1.3456]
[1729499903198,4.58,168.07,167.87,65.7256]
[1729499903398,4.58,168.07,167.95,2.9779]
[1729499903601,4.58,168.07,167.96,8.3456]
[1729499905111,4.58,168.07,167.96,3.8256]
[1729499905314,4.58,168.07,167.96,8.3456]
[1729499907415,4.58,168.07,167.96,3.8256]
[1729499907609,4.58,168.07,167.96,1.2431]
[1729499907818,4.58,168.07,167.94,4.52]
[1729499908117,4.58,168.07,167.93,4.52]
[1729499908717,4.58,168.07,167.93,7.50612135]
[1729499909412,4.52,168.06,167.93,4.52]
[1729499909616,4.52,168.06,167.93,7.47690602]
[1729499910215,7.52996341,168.06,167.93,7.47690602]
[1729499913016,4.52,168.06,167.93,7.47690602]
[1729499913516,2.6463,168.11,167.93,7.47690602]
[1729499913720,4.52,168.1,167.93,7.47690602]
[1729499914620,4.52,168.1,168.0,2.9772]
[1729499914817,1.2039,168.15,168.01,8.5433]
[1729499915021,7.42844452,168.14,168.01,8.5433]
[1729499918920,7.42844452,168.14,168.01,11.5203]
[1729499919121,7.42844452,168.14,168.02,3.00989757]
[1729499919925,7.42844452,168.14,168.01,8.5433]
[1729499920321,7.42844452,168.14,168.01,4.0233]
[1729499922224,7.42844452,168.14,167.93,2.95690602]
[1729499922225,25.31844452,168.14,167.93,2.95690602]
[1729499922529,25.31844452,168.14,167.94,8.3823]
[1729499923028,25.31844452,168.14,167.94,3.8623]
[1729499923230,25.31844452,168.14,167.94,8.3823]
[1729499923431,25.31844452,168.14,167.94,3.8623]
[1729499927030,2.90844452,168.14,167.94,3.8623]
[1729499927332,22.41,168.13,167.94,3.8623]
[1729499927532,25.3387177,168.13,167.94,3.8623]
[1729499930735,25.3387177,168.13,167.94,6.8405]
[1729499931932,25.3387177,168.13,167.95,4.52]
[1729499932934,25.3387177,168.13,167.94,3.8623]
[1729499933130,25.3387177,168.13,167.95,4.52]
[1729499934537,25.3387177,168.13,167.94,2.5774]
[1729499934735,25.3387177,168.13,167.93,4.52]
[1729499934929,25.3387177,168.13,167.89,3.9142]
[1729499935133,25.3387177,168.13,167.9,4.52]
[1729499935536,25.3387177,168.13,167.9,7.4989]
[1729499937042,17.89,168.09,167.9,7.4989]
[1729499937238,8.3848,168.08,167.9,7.4989]
[1729499939545,8.3848,168.08,167.93,2.9784]
[1729499939839,8.3848,168.08,167.94,4.52]
[1729499940238,8.3848,168.08,167.9,2.9789]
[1729499940436,26.2748,168.08,167.91,4.52]
[1729499940634,26.2748,168.08,167.89,6.92070291]
[1729499940837,26.2748,168.08,167.9,4.52]
[1729499941643,26.2748,168.08,167.89,6.92070291]
[1729499941841,26.2748,168.08,167.9,4.52]
[1729499946440,8.3848,168.08,167.9,4.52]
[1729499946645,8.3848,168.08,167.91,2.9787]
[1729499946848,4.52,168.07,167.91,2.9787]
[1729499948844,22.41,168.07,167.89,6.92070291]
[1729499949241,22.41,168.07,167.89,1.3349]
[1729499949448,22.41,168.07,167.87,4.52]
[1729499949848,77.19932127,168.07,167.88,2.98283856]
[1729499950050,77.19932127,168.07,167.87,4.52]
[1729499950551,77.19932127,168.07,167.87,7.43368512]
[1729499950851,4.52,168.07,167.88,3.8948]
[1729499951444,4.52,168.06,167.88,3.8948]
[1729499951944,4.52,168.05,167.93,2.9783]
[1729499952147,4.52,168.05,167.94,4.52]
[1729499954552,7.47434537,168.04,167.94,4.52]
[1729499954852,4.52,168.03,167.94,4.52]
[1729499957345,3.8648,168.08,167.94,4.52]
[1729499957550,4.52,168.07,167.95,2.5535]
[1729499957850,3.8648,168.08,167.96,2.94535069]
[1729499958052,4.52,168.07,167.95,3.8705]
[1729499958251,3.8648,168.08,167.95,3.8705]
[1729499958449,2.9287177,168.13,167.95,3.8705]
[1729499958649,124.49626837,168.17,167.95,3.8705]
[1729499958650,4.52,168.12,167.95,3.8705]
[1729499958851,4.52,168.11,168.0,2.9772]
[1729499959050,4.52,168.11,168.01,4.52]
[1729499959352,4.52,168.11,168.01,7.4969]
[1729499959548,4.52,168.11,168.02,2.4861]
[1729499959753,4.52,168.11,168.02,5.46661727]
[1729499960252,4.52,168.11,168.01,4.52]
[1729499961654,4.52,168.11,168.02,1.3572]
[1729499962555,7.0486,168.14,168.03,2.9766]
[1729499962750,7.0486,168.14,168.03,5.5358]
[1729499963255,7.0486,168.14,168.03,2.5592]
[1729499964256,7.0486,168.14,168.03,5.5358]
[1729499964553,10.04181592,168.14,168.03,1.3225]
[1729499964755,10.04181592,168.14,168.01,4.52]
[1729499965957,4.52,168.13,168.01,4.52]
[1729499966859,4.52,168.13,167.99,2.99113109]
[1729499967161,4.52,168.13,167.98,2.9775]
[1729499967354,4.52,168.13,167.97,2.98934155]
[1729499967555,22.41,168.13,167.92,1.3384]
[1729499967756,22.41,168.13,167.93,4.52]
[1729499968255,22.41,168.13,167.94,2.9781]
[1729499968654,77.19932127,168.13,167.94,2.9781]
[1729499968854,22.41,168.13,167.94,2.9781]
[1729499969155,22.41,168.13,167.95,2.9781]
[1729499969353,77.19932127,168.13,167.93,4.52]
[1729499969551,22.41,168.13,167.93,4.52]
[1729499969762,4.52,168.13,167.95,2.9779]
[1729499969959,4.52,168.13,167.93,4.52]
[1729499970559,5.52181592,168.14,167.93,4.52]
[1729499970766,4.52,168.13,167.93,4.52]
[1729499973066,4.52,168.13,167.99,2.9774]
[1729499973267,4.52,168.13,167.99,7.4974]
[1729499973662,4.52,168.12,168.01,2.977]
[1729499974564,4.52,168.12,168.03,2.9766]
[1729499975572,4.52,168.12,168.02,2.9768]
[1729499976363,4.52,168.11,168.03,2.9766]
[1729499976765,2.5286,168.14,167.99,8.4036]
[1729499976969,4.52,168.13,168.03,2.9766]
[1729499977169,4.52,168.13,168.03,4.52]
[1729499977367,68.48665159,168.28,168.03,4.52]
[1729499977571,3.8152,168.21,168.03,4.52]
[1729499977766,6.76766667,168.21,168.03,4.52]
[1729499978379,6.76766667,168.21,168.07,2.9759]
[1729499978575,6.76766667,168.21,168.07,7.4959]
[1729499979573,6.76766667,168.21,168.04,7.4963]
[1729499981579,6.76766667,168.21,168.04,4.52]
[1729499981978,24.65766667,168.21,168.04,4.52]
[1729499982781,79.44698794,168.21,168.04,4.52]
[1729499982982,72.67932127,168.2,168.04,4.52]
[1729499983371,72.67932127,168.2,168.02,2.9767]
[1729499983372,4.52,168.19,168.02,2.9767]
[1729499983576,4.52,168.19,168.03,4.52]
[1729499984779,59.30932127,168.19,168.03,4.52]
[1729499985078,77.19932127,168.19,167.99,3.8836]
[1729499985280,72.67932127,168.18,167.99,3.8836]
[1729499985582,54.78932127,168.14,167.99,1.2278]
[1729499985777,7.053,168.13,167.99,1.2278]
[1729499985985,8.254,168.13,167.99,1.2278]
[1729499987373,2.98219073,168.12,167.99,1.2278]
[1729499987579,4.52,168.11,168.01,2.977]
[1729499987979,4.52,168.11,168.01,7.497]
[1729499988982,4.52,168.11,168.01,4.52]
[1729499991182,57.74178794,168.21,168.05,2.9762]
[1729499991183,4.52,168.16,168.05,2.9762]
[1729499991380,4.52,168.15,168.05,4.52]
[1729499995292,4.52,168.15,168.0,2.9771]
[1729499995494,4.52,168.15,168.01,4.52]
[1729499996092,2.613,168.17,168.01,4.52]
[1729499996287,4.52,168.16,168.01,4.52]
[1729499996796,4.52,168.21,168.01,4.52]
[1729499996992,2.4531,168.2,168.01,7.43200562]
[1729499997187,5.39936451,168.2,168.07,2.9758]
[1729499997390,5.39936451,168.2,168.07,4.52]
[1729499998289,5.39936451,168.2,168.01,2.91200562]
[1729499998494,60.18868578,168.2,168.02,4.52]
[1729499998797,60.18868578,168.2,168.03,2.95460581]
[1729499998997,60.18868578,168.2,168.04,2.9763]
[1729499999194,17.89,168.19,167.99,1.2278]
[1729499999398,72.67932127,168.19,168.0,7.51661019]
[1729499999596,54.78932127,168.18,168.0,4.52]
[1729499999804,4.52,168.17,168.0,7.56373725]
[1729500000200,4.52,168.17,168.05,2.9762]
[1729500000405,54.78932127,168.19,168.05,2.9762]
[1729500000406,4.52,168.16,168.05,2.9762]
[1729500002301,4.52,168.16,168.04,4.52]
[1729500002507,1.202,168.15,168.04,4.52]
[1729500005113,1.202,168.15,167.99,1.2278]
[1729500005408,1.202,168.15,168.0,4.52]
[1729500005809,1.202,168.15,168.0,7.497]
[1729500007407,1.202,168.15,168.0,2.977]
[1729500008012,1.202,168.15,167.99,8.7251]
[1729500009917,1.202,168.15,167.99,1.2278]
[1729500010711,1.202,168.15,167.98,2.5881]
[1729500010911,1.202,168.15,167.98,1.3551]
[1729500011817,1.202,168.15,167.98,4.3325]
[1729500012920,1.202,168.15,167.98,1.3551]
[1729500016620,4.52,168.14,167.98,1.3551]
[1729500016919,1.202,168.15,167.99,2.9772]
[1729500016920,4.52,168.13,167.99,2.9772]
[1729500017118,4.52,168.13,168.0,2.6202]
[1729500017425,4.52,168.13,168.01,2.9769]
[1729500017625,4.52,168.13,168.0,2.6202]
[1729500018726,4.52,168.13,168.02,2.9768]
[1729500019222,4.52,168.13,168.0,2.6202]
[1729500019433,4.52,168.12,168.0,2.6202]
[1729500020030,4.52,168.12,168.04,2.9764]
[1729500020227,4.52,168.12,168.05,1.3149]
[1729500023329,3.00966029,168.11,168.05,1.3149]
[1729500023530,3.00966029,168.11,168.0,2.6202]
[1729500023730,4.52,168.12,168.0,2.6202]
[1729500024530,1.202,168.15,168.0,2.6202]
[1729500024739,4.54,168.14,168.0,2.6202]
[1729500024937,4.54,168.14,168.02,2.9767]
[1729500026040,4.54,168.14,168.03,2.9765]
[1729500026229,4.54,168.14,168.03,7.5165]
[1729500026433,4.54,168.14,168.03,4.54]
[1729500026637,4.54,168.14,168.04,2.9764]
[1729500027632,1.202,168.15,168.04,2.9764]
[1729500027833,4.54,168.14,168.05,2.9761]
[1729500028537,4.54,168.14,168.04,2.93906262]
[1729500028736,1.2022,168.19,168.04,1.2258]
[1729500028937,64.32,168.25,168.04,4.17523455]
[1729500029236,64.32,168.25,168.04,1.2258]
[1729500029237,5.8196,168.24,168.04,1.2258]
[1729500029440,5.8196,168.24,168.04,4.17166056]
[1729500029633,5.8196,168.24,168.05,4.54]
[1729500030541,5.8196,168.24,168.04,4.17166056]
[1729500030730,5.8196,168.24,168.05,4.52]
[1729500031839,5.8196,168.24,168.08,2.9758]
[1729500032141,5.8196,168.24,168.09,1.3319]
[1729500032537,5.8196,168.24,168.09,5.8519]
[1729500032743,5.8196,168.24,168.1,1.2472]
[1729500033038,5.8196,168.24,168.1,4.2226]
[1729500034843,5.8196,168.24,168.11,1.2607]
[1729500035539,5.8196,168.24,168.09,1.3319]
[1729500035540,23.7096,168.24,168.09,1.3319]
[1729500035744,78.03222693,168.24,168.09,1.3319]
[1729500036039,73.49222693,168.24,168.09,1.3319]
[1729500036238,22.41,168.23,168.09,1.3319]
[1729500036439,4.52,168.23,168.09,1.3319]
[1729500036840,4.52,168.23,168.1,4.52]
[1729500037143,4.52,168.23,168.1,7.4954]
[1729500037344,1.2796,168.24,168.1,7.4954]
[1729500037536,4.52,168.23,168.1,7.4954]
[1729500037942,4.52,168.23,168.1,4.52]
[1729500038935,22.41,168.23,168.09,1.3319]
[1729500039240,76.73262693,168.23,168.09,1.3319]
[1729500039546,22.41,168.23,168.09,1.3319]
[1729500040145,76.73262693,168.23,168.09,1.3319]
[1729500041845,22.41,168.23,168.09,1.3319]
[1729500046347,4.52,168.22,168.1,4.52]
[1729500046753,4.52,168.22,168.11,2.9752]
[1729500047054,4.52,168.21,168.1,4.52]
[1729500047552,4.52,168.21,168.1,7.4953]
[1729500047949,4.52,168.21,168.11,2.9751]
[1729500050252,4.52,168.21,168.1,7.4954]
[1729500051855,4.52,168.21,168.1,2.9754]
[1729500052055,4.52,168.21,168.1,7.4954]
[1729500055269,4.52,168.21,168.1,4.52]
[1729500056457,4.52,168.21,168.1,7.4954]
[1729500061063,4.52,168.21,168.1,4.52]
[1729500061663,1.2796,168.24,168.12,2.9749]
[1729500061664,4.52,168.22,168.12,2.9749]
[1729500061863,4.52,168.22,168.13,2.652]
[1729500062070,1.2796,168.24,168.13,2.652]
[1729500062261,1.2796,168.24,168.14,2.9552265]
[1729500062462,4.52,168.23,168.13,2.652]
[1729500063065,22.41,168.23,168.09,1.3319]
[1729500063370,22.41,168.23,168.05,2.6021]
[1729500063371,22.41,168.23,168.06,4.52]
[1729500064560,22.41,168.23,168.06,7.4961]
[1729500065067,22.41,168.23,168.06,4.52]
[1729500065457,19.1696,168.24,168.06,4.52]
[1729500065660,22.41,168.22,168.05,7.1221]
[1729500066863,22.41,168.22,168.05,2.6021]
[1729500067460,22.41,168.22,167.95,2.95650181]
[1729500067669,17.89,168.2,167.98,2.9774]